bitfinex/quotes_SOLUSD_20250307
["timestamp","ask_amount","ask_price","bid_price","bid_amount"]
[1741320079974,36.63584142,141.29,141.28,368.77960502]
[1741320080179,36.63584142,141.29,141.28,680.77960502]
[1741320081279,36.63584142,141.29,141.28,678.77960502]
[1741320081463,36.63584142,141.29,141.28,680.77960502]
[1741320081663,36.63584142,141.29,141.28,678.77960502]
[1741320082064,36.63584142,141.29,141.28,505.55960502]
[1741320082266,36.63584142,141.29,141.28,680.75960502]
[1741320082468,36.63584142,141.29,141.28,678.75960502]
[1741320082665,36.63584142,141.29,141.28,678.47528188]
[1741320082993,36.63584142,141.29,141.28,678.61744345]
[1741320083189,36.63584142,141.29,141.28,680.61744345]
[1741320083488,36.63584142,141.29,141.28,678.75960502]
[1741320083674,36.63584142,141.29,141.28,680.75960502]
[1741320084783,0.03,141.29,141.28,680.75960502]
[1741320084973,0.03,141.31,141.3,2.28432314]
[1741320085179,0.03,141.31,141.3,195.0448642]
[1741320085367,36.63584142,141.31,141.3,191.55960502]
[1741320085879,0.03,141.31,141.3,193.55960502]
[1741320086070,36.63584142,141.31,141.3,193.55960502]
[1741320086604,0.03,141.31,141.3,193.55960502]
[1741320087788,0.03,141.31,141.3,191.55960502]
[1741320087989,36.63584142,141.31,141.3,191.55960502]
[1741320088190,36.63584142,141.31,141.3,503.55960502]
[1741320088494,36.63584142,141.31,141.3,505.55960502]
[1741320088792,36.63584142,141.31,141.3,503.55960502]
[1741320088991,36.63584142,141.31,141.3,509.93528188]
[1741320089183,36.63584142,141.31,141.3,510.07744345]
[1741320089492,36.63584142,141.31,141.3,510.21960502]
[1741320091284,36.63584142,141.31,141.3,510.05744345]
[1741320091493,36.63584142,141.31,141.3,510.19960502]
[1741320096994,36.60584142,141.33,141.31,0.28432314]
[1741320097174,36.60584142,141.32,141.31,191.55960502]
[1741320098177,36.60584142,141.32,141.31,191.27528188]
[1741320098585,22.8422563,141.32,141.31,191.27528188]
[1741320098983,22.8422563,141.32,141.31,191.55960502]
[1741320100309,22.8422563,141.32,141.31,503.55960502]
[1741320100797,22.8422563,141.32,141.31,380.45960502]
[1741320103999,22.8422563,141.33,141.32,0.28432314]
[1741320104209,45.6845126,141.33,141.32,0.28432314]
[1741320106908,45.6845126,141.33,141.32,68.45960502]
[1741320107095,45.6845126,141.33,141.32,380.45960502]
[1741320109986,45.6845126,141.33,141.32,385.04959408]
[1741320110187,22.8422563,141.33,141.32,380.45960502]
[1741320112414,45.6845126,141.33,141.32,380.45960502]
[1741320114103,22.8422563,141.33,141.32,380.45960502]
[1741320115338,45.6845126,141.33,141.32,380.45960502]
[1741320117330,64.33416146,141.33,141.32,380.17528188]
[1741320117502,64.33416146,141.33,141.32,380.45960502]
[1741320118416,64.33416146,141.33,141.32,387.09960502]
[1741320118621,45.6845126,141.33,141.32,386.81528188]
[1741320118824,45.6845126,141.33,141.32,387.09960502]
[1741320120149,45.6845126,141.33,141.32,510.19960502]
[1741320120318,22.8422563,141.33,141.32,510.19960502]
[1741320122837,45.6845126,141.33,141.31,168.493]
[1741320123152,41.49190516,141.32,141.31,149.96743064]
[1741320123343,41.49190516,141.32,141.31,0.033]
[1741320123528,18.64964886,141.3,141.28,6.673]
[1741320123832,64.33416146,141.29,141.28,6.673]
[1741320124128,64.33416146,141.29,141.28,0.033]
[1741320124317,64.33416146,141.29,141.28,6.673]
[1741320124537,64.33416146,141.29,141.28,6.81516157]
[1741320124920,64.33416146,141.29,141.28,6.673]
[1741320125122,71.41176146,141.29,141.28,0.033]
[1741320125323,18.64964886,141.28,141.23,0.21324235]
[1741320125526,41.49190516,141.24,141.23,0.21324235]
[1741320126230,71.96436146,141.24,141.22,6.64]
[1741320126430,26.27984886,141.24,141.19,6.673]
[1741320126633,64.33416146,141.2,141.19,6.673]
[1741320127242,64.33416146,141.2,141.19,318.95732314]
[1741320127952,64.33416146,141.2,141.19,318.673]
[1741320128173,64.33416146,141.2,141.19,6.673]
[1741320128452,64.33416146,141.2,141.19,0.17516157]
[1741320129161,64.33416146,141.2,141.19,0.31732314]
[1741320129817,64.33416146,141.2,141.19,0.033]
[1741320131822,64.33416146,141.2,141.19,6.81516157]
[1741320132017,64.33416146,141.2,141.19,6.95732314]
[1741320133313,64.33416146,141.2,141.19,75.13260502]
[1741320133522,45.6845126,141.2,141.19,75.13260502]
[1741320133724,22.8422563,141.2,141.19,198.23260502]
[1741320133923,22.8422563,141.2,141.19,200.23260502]
[1741320134141,7.9814,141.28,141.2,2.28432314]
[1741320134332,7.9814,141.28,141.2,191.55960502]
[1741320134333,45.6845126,141.21,141.2,191.55960502]
[1741320134730,22.8422563,141.21,141.2,191.55960502]
[1741320135128,22.8422563,141.21,141.2,503.55960502]
[1741320136143,64.33416146,141.21,141.2,380.31744345]
[1741320136341,64.33416146,141.21,141.2,6.64]
[1741320136518,91.90070894,141.21,141.2,2.39764619]
[1741320136917,91.90070894,141.21,141.2,2.53980776]
[1741320137132,91.90070894,141.21,141.19,0.033]
[1741320137133,18.64964886,141.2,141.19,0.033]
[1741320137452,136.44203898,141.2,141.17,0.17516157]
[1741320137645,91.90070894,141.18,141.17,0.17516157]
[1741320137817,91.90070894,141.18,141.17,0.31732314]
[1741320138018,55.2751789,141.18,141.17,0.31732314]
[1741320139247,36.62553004,141.18,141.17,380.49260502]
[1741320139472,36.62553004,141.18,141.17,382.59972634]
[1741320139637,36.62553004,141.18,141.17,505.59260502]
[1741320139846,36.62553004,141.18,141.17,193.59260502]
[1741320140348,36.62553004,141.18,141.17,191.59260502]
[1741320140526,36.48343004,141.18,141.17,193.59260502]
[1741320140727,18.64964886,141.25,141.19,2.28432314]
[1741320140945,18.64964886,141.25,141.19,191.55960502]
[1741320141852,73.25106008,141.2,141.19,191.55960502]
[1741320142748,73.25106008,141.2,141.19,503.55960502]
[1741320142938,91.90070894,141.2,141.19,380.45960502]
[1741320143756,91.90070894,141.2,141.19,312.0]
[1741320144139,91.90070894,141.2,141.19,312.28432314]
[1741320144339,36.62553004,141.2,141.19,380.45960502]
[1741320145055,73.25106008,141.2,141.19,380.49260502]
[1741320145441,73.25106008,141.2,141.19,503.59260502]
[1741320149465,36.62553004,141.2,141.19,503.59260502]
[1741320150149,91.90070894,141.2,141.19,74.84828188]
[1741320150349,18.64964886,141.19,141.17,0.033]
[1741320150537,91.90070894,141.18,141.15,0.033]
[1741320150759,91.90070894,141.16,141.15,0.033]
[1741320151694,91.90070894,141.16,141.15,0.17516157]
[1741320152196,55.2751789,141.16,141.15,0.17516157]
[1741320152503,55.2751789,141.16,141.15,68.35044345]
[1741320154382,91.90070894,141.16,141.15,68.35044345]
[1741320155673,91.90070894,141.16,141.15,0.033]
[1741320155878,7.8038,141.14,141.09,0.033]
[1741320156081,73.25106008,141.1,141.09,0.033]
[1741320156394,55.2751789,141.1,141.09,68.49260502]
[1741320156597,22.91341819,141.1,141.09,380.49260502]
[1741320156798,22.91341819,141.12,141.1,0.28432314]
[1741320156961,22.91341819,141.11,141.1,0.28432314]
[1741320158363,22.91341819,141.11,141.1,195.04721388]
[1741320158602,36.62878234,141.12,141.1,193.55960502]
[1741320158767,36.62878234,141.12,141.11,2.28432314]
[1741320159372,73.25756468,141.12,141.11,0.28432314]
[1741320159683,36.62878234,141.12,141.11,6.92432314]
[1741320159867,36.62878234,141.12,141.11,318.92432314]
[1741320161676,36.62878234,141.14,141.13,2.28432314]
[1741320161868,36.62878234,141.14,141.13,191.55960502]
[1741320164881,36.62878234,141.14,141.13,503.55960502]
[1741320165571,36.62878234,141.14,141.13,505.55960502]
[1741320165772,36.62878234,141.15,141.14,0.28432314]
[1741320166099,0.03,141.17,141.14,193.55960502]
[1741320166280,0.03,141.17,141.16,0.28432314]
[1741320166603,0.03,141.17,141.16,198.19960502]
[1741320166980,36.65878234,141.17,141.16,198.19960502]
[1741320168898,0.03,141.17,141.16,512.19960502]
[1741320169902,36.65878234,141.17,141.16,512.19960502]
[1741320170904,36.65878234,141.17,141.16,505.55960502]
[1741320171204,36.65878234,141.17,141.16,510.19960502]
[1741320172577,36.65878234,141.17,141.16,510.05744345]
[1741320172794,55.3084312,141.17,141.16,503.41744345]
[1741320173005,55.3084312,141.17,141.16,509.91528188]
[1741320173209,55.3084312,141.17,141.16,510.19960502]
[1741320174213,0.03,141.17,141.16,510.19960502]
[1741320174512,36.65878234,141.17,141.16,512.19960502]
[1741320176924,0.03,141.17,141.16,512.19960502]
[1741320180409,36.65878234,141.17,141.16,512.19960502]
[1741320180605,36.65878234,141.17,141.16,510.19960502]
[1741320181207,55.3084312,141.17,141.16,509.91528188]
[1741320181405,55.3084312,141.17,141.16,510.19960502]
[1741320181793,55.3084312,141.17,141.16,509.91528188]
[1741320182006,55.3084312,141.17,141.16,510.19960502]
[1741320182515,36.65878234,141.17,141.16,510.19960502]
[1741320185596,0.03,141.17,141.16,510.19960502]
[1741320186721,0.03,141.17,141.16,512.19960502]
[1741320188723,0.03,141.17,141.16,510.19960502]
[1741320188895,0.03,141.17,141.16,509.91528188]
[1741320188896,22.90143979,141.17,141.16,509.91528188]
[1741320189098,22.90143979,141.17,141.16,510.19960502]
[1741320189508,0.03,141.17,141.16,510.05744345]
[1741320189712,22.90143979,141.17,141.16,510.05744345]
[1741320189912,22.90143979,141.17,141.16,510.19960502]
[1741320191127,41.55108865,141.17,141.16,509.91528188]
[1741320191431,41.55108865,141.17,141.16,510.19960502]
[1741320192113,41.55108865,141.17,141.16,387.09960502]
[1741320192510,43.20398865,141.17,141.16,6.64]
[1741320192707,43.20398865,141.17,141.16,6.92432314]
[1741320193625,43.20398865,141.17,141.16,312.28432314]
[1741320193826,43.20398865,141.17,141.16,318.92432314]
[1741320194633,18.64964886,141.16,141.13,0.24624235]
[1741320194834,18.64964886,141.16,141.15,6.64]
[1741320195134,1.6829,141.17,141.15,6.64]
[1741320196841,1.6829,141.17,141.16,0.14216157]
[1741320197042,1.6829,141.17,141.15,6.64]
[1741320197245,1.6829,141.17,141.14,0.14216157]
[1741320197440,8.7667,141.17,141.13,0.033]
[1741320197743,18.64964886,141.15,141.13,0.033]
[1741320197928,18.64964886,141.15,141.12,0.14216157]
[1741320198127,64.39252844,141.13,141.12,0.14216157]
[1741320198521,64.39252844,141.13,141.12,0.28432314]
[1741320198718,22.87143979,141.13,141.12,0.28432314]
[1741320198949,22.87143979,141.13,141.12,144.68432314]
[1741320199642,22.87143979,141.13,141.12,82.38432314]
[1741320201021,64.39252844,141.13,141.09,82.133]
[1741320201221,41.52108865,141.1,141.09,82.133]
[1741320201447,41.52108865,141.1,141.09,89.05732314]
[1741320201825,22.87143979,141.1,141.09,401.05732314]
[1741320202251,22.87143979,141.1,141.09,89.05732314]
[1741320205036,22.87143979,141.1,141.09,151.35732314]
[1741320205345,22.87143979,141.1,141.09,463.35732314]
[1741320206539,22.87143979,141.12,141.1,0.28432314]
[1741320206746,22.87143979,141.11,141.1,0.28432314]
[1741320209851,22.87143979,141.11,141.1,312.28432314]
[1741320210763,22.87143979,141.11,141.1,394.38432314]
[1741320212270,22.87143979,141.11,141.1,312.0]
[1741320212271,43.04508865,141.11,141.1,312.0]
[1741320212564,43.04508865,141.11,141.1,318.78216157]
[1741320213364,41.52108865,141.11,141.1,318.92432314]
[1741320213564,41.52108865,141.11,141.09,0.033]
[1741320213565,18.64964886,141.1,141.09,0.033]
[1741320213767,41.52108865,141.1,141.09,6.673]
[1741320213936,41.52108865,141.1,141.09,6.81516157]
[1741320214850,41.52108865,141.1,141.09,0.17516157]
[1741320215055,47.73878865,141.1,141.09,0.85352507]
[1741320215246,47.73878865,141.1,141.09,0.033]
[1741320215447,70.61022844,141.1,141.09,0.033]
[1741320215959,47.73878865,141.1,141.09,0.033]
[1741320221374,70.61022844,141.1,141.09,0.033]
[1741320221758,47.73878865,141.1,141.09,0.033]
[1741320222191,47.73878865,141.1,141.08,0.14216157]
[1741320222355,41.52108865,141.09,141.08,0.14216157]
[1741320222756,64.39252844,141.09,141.08,0.14216157]
[1741320223063,18.64964886,141.08,141.06,6.64]
[1741320223285,64.39252844,141.07,141.06,6.78216157]
[1741320224276,18.64964886,141.06,141.05,0.033]
[1741320224476,64.39252844,141.06,141.05,0.033]
[1741320225981,64.39252844,141.06,141.05,0.17516157]
[1741320231764,64.5177494,141.06,141.05,0.17516157]
[1741320234484,64.5177494,141.06,141.05,312.17516157]
[1741320234970,64.5177494,141.06,141.05,0.17516157]
[1741320237994,64.5177494,141.06,141.05,312.17516157]
[1741320239799,41.58369913,141.06,141.05,0.31732314]
[1741320240277,64.5177494,141.06,141.05,0.17516157]
[1741320240878,41.58369913,141.06,141.05,0.17516157]
[1741320241290,64.5177494,141.06,141.05,0.17516157]
[1741320241495,41.58369913,141.06,141.05,82.41732314]
[1741320242772,41.58369913,141.06,141.05,394.41732314]
[1741320244885,64.5177494,141.06,141.05,394.41732314]
[1741320245392,22.93405027,141.06,141.05,394.41732314]
[1741320245784,64.5177494,141.06,141.05,394.41732314]
[1741320247702,45.86810054,141.06,141.05,394.41732314]
[1741320247994,64.5177494,141.06,141.05,312.033]
[1741320248399,64.5177494,141.06,141.05,318.81516157]
[1741320249284,64.5177494,141.06,141.05,318.95732314]
[1741320250083,64.5177494,141.06,141.05,318.81516157]
[1741320250606,92.01943531,141.06,141.05,318.81516157]
[1741320251682,92.01943531,141.06,141.05,318.95732314]
[1741320251683,33.32360615,141.06,141.05,318.95732314]
[1741320251985,92.01943531,141.06,141.05,318.81516157]
[1741320252191,92.01943531,141.06,141.05,6.78216157]
[1741320253102,92.01943531,141.06,141.05,318.78216157]
[1741320256802,33.32360615,141.06,141.05,6.92432314]
[1741320258508,33.32360615,141.06,141.05,89.02432314]
[1741320259087,18.64964886,141.06,141.05,89.02432314]
[1741320259493,33.32360615,141.06,141.05,89.02432314]
[1741320259801,33.32360615,141.06,141.05,401.02432314]
[1741320260508,14.67395729,141.06,141.05,401.02432314]
[1741320262890,0.03,141.09,141.06,0.28432314]
[1741320263108,14.67395729,141.07,141.06,0.28432314]
[1741320264492,92.01943531,141.07,141.06,0.28432314]
[1741320266205,33.32360615,141.07,141.06,312.28432314]
[1741320266907,92.01943531,141.07,141.06,312.28432314]
[1741320267288,33.32360615,141.07,141.06,312.28432314]
[1741320268287,14.67395729,141.07,141.06,312.28432314]
[1741320269617,14.70395729,141.07,141.06,312.28432314]
[1741320270115,14.70395729,141.07,141.06,394.38432314]
[1741320273113,14.70395729,141.07,141.06,456.68432314]
[1741320275631,14.70395729,141.07,141.06,458.31582314]
[1741320276833,14.70395729,141.07,141.06,460.31582314]
[1741320281043,14.70395729,141.07,141.06,458.31582314]
[1741320282030,14.70395729,141.07,141.06,458.34882314]
[1741320282531,0.03,141.09,141.08,52.28432314]
[1741320283936,0.03,141.09,141.08,221.00432314]
[1741320284438,14.67395729,141.1,141.09,2.28432314]
[1741320284643,14.67395729,141.1,141.09,146.68432314]
[1741320285222,0.03,141.13,141.09,146.68432314]
[1741320285551,0.03,141.13,141.11,0.28432314]
[1741320285846,0.03,141.13,141.12,312.0]
[1741320286060,0.03,141.13,141.12,394.38432314]
[1741320286943,14.70395729,141.13,141.12,394.38432314]
[1741320287637,73.39978645,141.13,141.12,394.38432314]
[1741320287838,14.70395729,141.13,141.12,394.38432314]
[1741320288955,73.39978645,141.13,141.12,394.38432314]
[1741320290073,14.70395729,141.13,141.12,394.38432314]
[1741320290441,73.39978645,141.13,141.12,394.38432314]
[1741320291568,14.70395729,141.13,141.12,394.38432314]
[1741320291759,73.39978645,141.13,141.12,394.38432314]
[1741320294770,14.70395729,141.13,141.12,394.38432314]
[1741320296550,73.39978645,141.13,141.12,394.38432314]
[1741320296749,14.70395729,141.13,141.12,394.38432314]
[1741320298449,0.03,141.13,141.12,458.68432314]
[1741320298684,14.70395729,141.13,141.12,456.68432314]
[1741320300261,14.70395729,141.13,141.12,458.68432314]
[1741320300467,14.70395729,141.13,141.12,456.68432314]
[1741320301791,14.70395729,141.13,141.12,394.38432314]
[1741320302592,0.03,141.13,141.12,394.24216157]
[1741320302787,73.39978645,141.13,141.12,394.24216157]
[1741320302964,73.39978645,141.13,141.12,394.38432314]
[1741320303164,73.39978645,141.13,141.12,394.24216157]
[1741320303486,14.70395729,141.13,141.12,400.88216157]
[1741320303875,14.70395729,141.13,141.12,401.02432314]
[1741320304280,0.03,141.13,141.12,401.02432314]
[1741320304482,14.70395729,141.13,141.12,401.02432314]
[1741320305886,14.70395729,141.13,141.12,463.32432314]
[1741320316603,73.39978645,141.13,141.12,456.68432314]
[1741320316805,73.39978645,141.13,141.12,144.54216157]
[1741320317101,92.04943531,141.13,141.12,151.16216157]
[1741320317303,73.39978645,141.13,141.12,151.30432314]
[1741320317486,14.70395729,141.13,141.12,151.30432314]
[1741320317883,14.70395729,141.13,141.12,463.30432314]
[1741320318194,0.03,141.13,141.12,463.30432314]
[1741320318592,14.70395729,141.13,141.12,463.30432314]
[1741320318971,73.39978645,141.13,141.12,463.30432314]
[1741320321696,92.04943531,141.13,141.12,456.68432314]
[1741320321896,92.04943531,141.13,141.12,456.54216157]
[1741320322087,92.04943531,141.13,141.12,463.16216157]
[1741320322282,92.04943531,141.13,141.12,463.30432314]
[1741320322680,92.04943531,141.13,141.12,6.76216157]
[1741320322877,98.28843531,141.13,141.09,82.133]
[1741320323082,24.91864886,141.13,141.12,6.62]
[1741320323374,24.91864886,141.13,141.12,6.76216157]
[1741320323591,24.91864886,141.13,141.12,318.76216157]
[1741320324298,98.28843531,141.13,141.12,318.76216157]
[1741320325505,92.04943531,141.13,141.12,318.76216157]
[1741320326000,73.39978645,141.13,141.12,318.90432314]
[1741320326584,73.39978645,141.13,141.12,401.00432314]
[1741320330108,14.70395729,141.13,141.12,401.00432314]
[1741320330292,73.39978645,141.13,141.12,401.00432314]
[1741320330887,14.70395729,141.13,141.12,401.00432314]
[1741320331291,73.39978645,141.13,141.12,401.00432314]
[1741320332488,73.39978645,141.13,141.12,401.03732314]
[1741320333404,92.04943531,141.13,141.12,401.03732314]
[1741320333590,92.04943531,141.13,141.12,400.753]
[1741320333997,92.04943531,141.13,141.12,400.89516157]
[1741320334199,92.04943531,141.13,141.12,401.03732314]
[1741320337999,73.39978645,141.13,141.12,401.03732314]
[1741320338202,92.04943531,141.13,141.12,401.03732314]
[1741320342224,92.04943531,141.13,141.12,89.03732314]
[1741320343193,92.04943531,141.13,141.12,401.03732314]
[1741320343720,92.04943531,141.13,141.12,89.03732314]
[1741320344224,73.39978645,141.13,141.12,89.03732314]
[1741320346824,92.04943531,141.13,141.12,401.03732314]
[1741320348100,92.04943531,141.13,141.12,363.28891963]
[1741320348300,92.04943531,141.13,141.12,343.70338274]
[1741320349735,73.39978645,141.13,141.12,343.70338274]
[1741320353408,14.70395729,141.13,141.12,425.80338274]
[1741320354627,73.39978645,141.13,141.12,425.80338274]
[1741320357257,14.70395729,141.13,141.12,425.80338274]
[1741320359031,73.39978645,141.13,141.12,425.80338274]
[1741320360522,92.04943531,141.13,141.12,336.7990596]
[1741320360918,92.04943531,141.13,141.12,336.94122117]
[1741320361642,92.04943531,141.13,141.12,336.7990596]
[1741320361945,93.62383531,141.13,141.12,318.77835455]
[1741320363125,92.04943531,141.13,141.12,318.77835455]
[1741320364780,92.04943531,141.13,141.12,401.02051612]
[1741320364781,73.39978645,141.13,141.12,401.02051612]
[1741320369750,92.04943531,141.13,141.12,400.87835455]
[1741320370635,92.04943531,141.13,141.12,325.25619298]
[1741320370945,92.04943531,141.13,141.12,325.39835455]
[1741320372139,92.04943531,141.13,141.12,6.76216157]
[1741320372461,73.39978645,141.13,141.12,6.90432314]
[1741320373254,73.39978645,141.13,141.12,318.90432314]
[1741320374561,0.03,141.13,141.12,404.53862314]
[1741320374852,0.03,141.17,141.16,0.14216157]
[1741320375155,14.70395729,141.17,141.16,12.48831361]
[1741320375537,14.70395729,141.17,141.16,62.48831361]
[1741320376250,0.03,141.17,141.16,0.28432314]
[1741320376449,14.70395729,141.17,141.16,0.28432314]
[1741320377058,14.70395729,141.17,141.16,53.7713911]
[1741320377059,0.03,141.17,141.16,53.7713911]
[1741320377231,0.03,141.17,141.16,70.38061709]
[1741320378354,0.03,141.17,141.16,382.38061709]
[1741320378541,0.03,141.17,141.16,380.89354913]
[1741320380361,0.03,141.17,141.16,462.99354913]
[1741320383455,14.70395729,141.17,141.16,462.99354913]
[1741320383663,14.70395729,141.17,141.16,417.32922599]
[1741320383864,14.70395729,141.17,141.16,400.72]
[1741320384361,14.70395729,141.17,141.16,401.00432314]
[1741320384740,14.70395729,141.17,141.16,451.00432314]
[1741320385570,14.70395729,141.17,141.16,453.00432314]
[1741320386243,0.03,141.17,141.16,459.25932314]
[1741320386654,0.03,141.17,141.16,627.83932314]
[1741320387165,0.03,141.22,141.2,50.14216157]
[1741320387344,14.70395729,141.21,141.2,134.38432314]
[1741320390339,0.03,141.21,141.2,446.38432314]
[1741320390536,14.70395729,141.21,141.2,446.38432314]
[1741320390739,0.03,141.21,141.2,446.38432314]
[1741320391037,14.70395729,141.21,141.2,446.38432314]
[1741320391236,14.70395729,141.21,141.2,444.38432314]
[1741320391575,14.70395729,141.21,141.2,446.38432314]
[1741320392550,14.70395729,141.21,141.2,444.38432314]
[1741320393059,14.70395729,141.21,141.2,446.38432314]
[1741320393376,0.03,141.21,141.2,446.38432314]
[1741320393541,14.70395729,141.21,141.2,446.38432314]
[1741320393742,0.03,141.21,141.2,446.38432314]
[1741320394043,14.70395729,141.21,141.2,446.38432314]
[1741320394971,14.70395729,141.21,141.2,444.38432314]
[1741320395144,14.70395729,141.21,141.2,446.38432314]
[1741320395351,14.70395729,141.21,141.2,450.98432314]
[1741320395648,14.70395729,141.21,141.2,452.98432314]
[1741320395870,14.70395729,141.21,141.2,450.98432314]
[1741320396581,14.70395729,141.21,141.2,452.98432314]
[1741320396965,14.70395729,141.21,141.2,450.98432314]
[1741320397271,14.70395729,141.21,141.2,452.98432314]
[1741320399675,0.03,141.21,141.2,452.98432314]
[1741320399857,14.70395729,141.21,141.2,452.98432314]
[1741320400967,14.70395729,141.21,141.2,621.50432314]
[1741320401575,0.03,141.21,141.2,621.50432314]
[1741320401776,14.70395729,141.21,141.2,621.50432314]
[1741320402781,14.70395729,141.21,141.2,642.81432314]
[1741320403774,0.03,141.21,141.2,642.81432314]
[1741320403970,14.70395729,141.21,141.2,642.81432314]
[1741320408182,0.03,141.22,141.21,23.59432314]
[1741320408485,0.03,141.22,141.21,322.47945058]
[1741320408785,0.03,141.22,141.21,322.51919371]
[1741320409275,0.03,141.22,141.21,357.94721244]
[1741320409485,0.03,141.22,141.21,322.51919371]
[1741320411281,0.03,141.22,141.21,634.51919371]
[1741320411582,14.64977062,141.24,141.23,52.28432314]
[1741320411883,14.64977062,141.24,141.23,135.87043045]
[1741320412185,14.64977062,141.24,141.23,134.38432314]
[1741320412889,14.64977062,141.24,141.23,155.69432314]
[1741320414087,0.03,141.24,141.23,226.78185136]
[1741320414787,0.03,141.24,141.23,538.78185136]
[1741320415786,14.64977062,141.24,141.23,453.92787936]
[1741320415993,14.64977062,141.24,141.23,444.1]
[1741320416287,14.64977062,141.24,141.23,444.38432314]
[1741320416693,14.64977062,141.24,141.23,394.38432314]
[1741320417262,14.64977062,141.24,141.23,394.1]
[1741320417475,14.64977062,141.24,141.23,400.98432314]
[1741320418073,0.03,141.24,141.23,450.98432314]
[1741320418290,14.64977062,141.24,141.23,450.98432314]
[1741320420193,14.64977062,141.24,141.23,619.44432314]
[1741320421096,0.03,141.24,141.23,661.403972]
[1741320421303,14.64977062,141.24,141.23,661.403972]
[1741320421606,14.64977062,141.24,141.23,659.403972]
[1741320421779,14.64977062,141.24,141.23,619.44432314]
[1741320423266,1.6335,141.28,141.27,50.14216157]
[1741320423467,16.25327062,141.28,141.27,82.38432314]
[1741320423894,14.64977062,141.28,141.27,132.38432314]
[1741320425980,0.03,141.28,141.27,134.38432314]
[1741320426180,14.64977062,141.28,141.27,134.38432314]
[1741320426399,14.64977062,141.28,141.27,446.38432314]
[1741320426986,0.03,141.28,141.27,486.343972]
[1741320427305,0.03,141.34,141.33,50.28432314]
[1741320427469,0.03,141.34,141.33,88.95432314]
[1741320428797,14.64977062,141.34,141.33,88.95432314]
[1741320429886,14.64977062,141.34,141.33,138.95432314]
[1741320430498,14.64977062,141.34,141.33,450.95432314]
[1741320430700,14.64977062,141.34,141.33,492.913972]
[1741320430896,14.64977062,141.34,141.33,452.95432314]
[1741320431208,14.64977062,141.34,141.33,400.67]
[1741320431401,73.1288531,141.34,141.33,400.67]
[1741320431573,14.64977062,141.34,141.33,400.95432314]
[1741320431992,73.1288531,141.34,141.33,400.95432314]
[1741320432385,73.1288531,141.34,141.33,88.98432314]
[1741320433089,73.1288531,141.34,141.33,88.84216157]
[1741320433289,73.1288531,141.34,141.33,400.98432314]
[1741320433712,73.1288531,141.34,141.33,400.84216157]
[1741320433884,73.1288531,141.34,141.33,381.25662468]
[1741320434809,73.1288531,141.34,141.33,381.11446311]
[1741320435010,73.1288531,141.34,141.33,318.74216157]
[1741320437718,91.77850196,141.34,141.32,0.14216157]
[1741320437899,73.0988531,141.33,141.3,6.6]
[1741320438219,73.0988531,141.31,141.3,6.74216157]
[1741320438714,73.0988531,141.31,141.3,318.6]
[1741320438920,99.59200196,141.31,141.3,312.0]
[1741320439120,18.64964886,141.3,141.27,6.81324235]
[1741320439307,73.0988531,141.28,141.27,6.81324235]
[1741320439495,73.0988531,141.28,141.27,6.95540392]
[1741320439697,73.0988531,141.28,141.27,0.35540392]
[1741320440201,73.0988531,141.28,141.27,312.35540392]
[1741320443397,73.0988531,141.28,141.27,312.49756549]
[1741320443617,14.61977062,141.28,141.27,312.49756549]
[1741320444199,73.0988531,141.28,141.27,312.35540392]
[1741320444623,7.8435,141.31,141.28,0.28432314]
[1741320444823,7.8435,141.31,141.28,62.79878625]
[1741320445531,14.61977062,141.29,141.28,62.79878625]
[1741320445893,73.0988531,141.29,141.27,0.21324235]
[1741320446121,91.74850196,141.28,141.27,0.21324235]
[1741320446328,73.0988531,141.28,141.27,0.21324235]
[1741320447201,14.61977062,141.28,141.27,0.21324235]
[1741320447406,14.61977062,141.28,141.27,0.49756549]
[1741320447637,58.47908248,141.33,141.28,0.14216157]
[1741320447931,14.61977062,141.29,141.28,62.79878625]
[1741320448117,14.61977062,141.29,141.28,119.39878625]
[1741320448314,58.47908248,141.33,141.31,0.28432314]
[1741320448512,0.03,141.34,141.31,62.79878625]
[1741320449407,0.03,141.34,141.33,73.59432314]
[1741320449605,0.03,141.34,141.33,60.36917827]
[1741320449823,0.03,141.34,141.33,58.36917827]
[1741320450027,0.03,141.34,141.33,56.88432314]
[1741320450332,0.03,141.34,141.33,77.533972]
[1741320450633,22.85546672,141.34,141.33,56.88432314]
[1741320450800,22.85546672,141.34,141.33,368.88432314]
[1741320451732,0.03,141.34,141.33,370.88432314]
[1741320451917,0.03,141.34,141.33,368.88432314]
[1741320452119,22.85546672,141.34,141.33,368.88432314]
[1741320452620,0.03,141.36,141.35,50.14216157]
[1741320452820,22.85546672,141.36,141.35,112.79878625]
[1741320453020,22.85546672,141.36,141.35,62.79878625]
[1741320453933,22.85546672,141.36,141.35,112.79878625]
[1741320454642,22.85546672,141.36,141.35,62.79878625]